bitfinex/quotes_BTCUSD_20260127
["timestamp","ask_amount","ask_price","bid_price","bid_amount"]
[1769524745087,0.0228622,87847.0,87815.0,0.01138757]
[1769524745412,0.05692181,87840.0,87814.0,0.0113877]
[1769524745861,0.01138511,87834.0,87800.0,0.00046521]
[1769524746078,0.67121266,87825.0,87800.0,0.00046521]
[1769524746278,0.69407486,87825.0,87800.0,0.00046521]
[1769524746640,0.70546113,87825.0,87800.0,0.00046521]
[1769524746845,0.11696,87841.0,87787.0,0.01310022]
[1769524746846,0.05692181,87817.0,87787.0,0.01310022]
[1769524747048,0.05738739,87817.0,87794.0,0.0113903]
[1769524747213,0.05738739,87817.0,87798.0,0.01138978]
[1769524747416,0.05738739,87817.0,87795.0,0.01139017]
[1769524747615,0.05738739,87817.0,87807.0,0.01138861]
[1769524747837,0.67121266,87834.0,87810.0,0.01138822]
[1769524748040,0.0228622,87843.0,87814.0,0.0113877]
[1769524748244,0.05694436,87839.0,87811.0,0.01138809]
[1769524748469,0.67121266,87838.0,87810.0,0.01152798]
[1769524749041,0.67121266,87838.0,87812.0,0.01138796]
[1769524749242,0.67121266,87838.0,87810.0,0.00013976]
[1769524749243,0.05694436,87823.0,87810.0,0.00013976]
[1769524750343,0.67121266,87831.0,87810.0,0.00013976]
[1769524750474,0.05694436,87835.0,87810.0,0.00013976]
[1769524750673,0.05694436,87835.0,87812.0,0.01138796]
[1769524750878,0.05694436,87835.0,87810.0,0.01152798]
[1769524751079,0.05694436,87835.0,87810.0,0.00013976]
[1769524751396,0.67121266,87832.0,87810.0,0.00013976]
[1769524751810,0.05694436,87835.0,87810.0,0.00013976]
[1769524752348,0.05694436,87835.0,87812.0,0.01138796]
[1769524752558,0.05694436,87835.0,87810.0,0.00013976]
[1769524752707,0.05694436,87835.0,87808.0,0.06347061]
[1769524752929,0.05708397,87835.0,87809.0,0.01138835]
[1769524753332,0.0719,87810.0,87806.0,0.0683321]
[1769524753581,0.02773202,87810.0,87807.0,0.03541008]
[1769524753794,0.05708397,87835.0,87809.0,0.02402147]
[1769524753942,0.67121266,87834.0,87805.0,0.01138887]
[1769524754155,0.0228622,87833.0,87801.0,0.01138939]
[1769524754351,0.67121266,87832.0,87805.0,0.06833294]
[1769524754576,0.67121266,87832.0,87805.0,0.01138887]
[1769524754789,0.67121266,87832.0,87807.0,0.01138861]
[1769524754992,0.05639197,87835.0,87807.0,0.01138861]
[1769524755190,0.01138381,87844.0,87800.0,0.340995]
[1769524755191,0.0228622,87846.0,87824.0,0.0113864]
[1769524755376,0.67121266,87852.0,87825.0,0.01138627]
[1769524755580,0.67121266,87852.0,87824.0,0.00013961]
[1769524755783,0.05692028,87843.0,87824.0,0.00013961]
[1769524756175,0.340995,87850.0,87790.0,0.440995]
[1769524756176,0.00986039,87804.0,87790.0,0.01139081]
[1769524756385,0.01000054,87804.0,87790.0,0.01139081]
[1769524756583,0.01000054,87804.0,87787.0,0.01310022]
[1769524756722,0.00014015,87804.0,87792.0,0.01139055]
[1769524756933,0.00014015,87804.0,87787.0,0.01310022]
[1769524757339,0.00014015,87804.0,87790.0,0.01139081]
[1769524757545,0.0899373,87843.0,87820.0,0.01138692]
[1769524757755,0.0899373,87843.0,87819.0,0.01138705]
[1769524757756,0.00014031,87843.0,87819.0,0.01138705]
[1769524757957,0.00014031,87843.0,87825.0,0.01138627]
[1769524758161,0.00014031,87843.0,87823.0,0.01138653]
[1769524758354,0.67121266,87842.0,87820.0,0.01138692]
[1769524758559,0.00014031,87843.0,87817.0,0.02402147]
[1769524758762,0.00014031,87843.0,87822.0,0.01138666]
[1769524758959,0.00014031,87843.0,87826.0,0.01138614]
[1769524759287,0.00014031,87843.0,87834.0,0.01138511]
[1769524759464,0.00014031,87843.0,87830.0,0.01138563]
[1769524759672,0.00014031,87843.0,87833.0,0.05692602]
[1769524759841,0.67121266,87860.0,87843.0,0.00013961]
[1769524760252,0.67121266,87858.0,87829.0,0.01138576]
[1769524760573,0.69407486,87856.0,87832.0,0.01138537]
[1769524760711,0.69407486,87856.0,87833.0,0.01138524]
[1769524760923,0.67121266,87856.0,87829.0,0.00014031]
[1769524761157,0.67121266,87856.0,87831.0,0.0113855]
[1769524761360,0.67121266,87856.0,87830.0,0.01138563]
[1769524761557,0.67121266,87856.0,87831.0,0.0113855]
[1769524761763,0.67121266,87856.0,87833.0,0.01138524]
[1769524762228,0.67121266,87856.0,87836.0,0.01138485]
[1769524762429,0.67121266,87856.0,87837.0,0.01138472]
[1769524762673,0.67121266,87856.0,87835.0,0.01138498]
[1769524762874,0.05693276,87857.0,87836.0,0.01138485]
[1769524763080,0.05693276,87857.0,87838.0,0.01138459]
[1769524763256,0.05693276,87857.0,87839.0,0.01138446]
[1769524763457,0.05693276,87857.0,87836.0,0.01138485]
[1769524763663,0.05693276,87857.0,87824.0,0.0113864]
[1769524763664,0.66171844,87856.0,87824.0,0.0113864]
[1769524763868,0.66171844,87854.0,87826.0,0.01138614]
[1769524764092,0.68548632,87852.0,87827.0,0.01138602]
[1769524764294,0.68548632,87852.0,87830.0,0.01138563]
[1769524764471,0.68548632,87852.0,87831.0,0.0113855]
[1769524764673,0.05693276,87857.0,87830.0,0.01138563]
[1769524764674,0.05693276,87857.0,87846.0,0.01138355]
[1769524764872,0.05693276,87857.0,87845.0,0.01138368]
[1769524765094,0.02319798,87867.0,87845.0,0.01138368]
[1769524765253,0.64737414,87872.0,87847.0,0.01138342]
[1769524765254,0.05693276,87862.0,87847.0,0.01138342]
[1769524765473,0.02319798,87876.0,87847.0,0.01138342]
[1769524765474,0.05693276,87871.0,87847.0,0.01138342]
[1769524765676,0.05693276,87871.0,87830.0,0.340995]
[1769524765677,0.11312895,87870.0,87842.0,0.02445851]
[1769524765876,0.11312895,87869.0,87844.0,0.01138381]
[1769524766132,0.76050309,87868.0,87842.0,0.02445851]
[1769524766344,0.64737414,87868.0,87847.0,0.01138342]
[1769524766580,0.64737414,87868.0,87843.0,0.01138394]
[1769524766799,0.64737414,87868.0,87844.0,0.01138381]
[1769524767012,0.64737414,87868.0,87845.0,0.01138368]
[1769524767223,0.64737414,87868.0,87845.0,0.06830192]
[1769524767424,0.64737414,87868.0,87843.0,0.01138394]
[1769524767623,0.64737414,87868.0,87844.0,0.01138381]
[1769524767905,0.64737414,87866.0,87832.0,0.11696]
[1769524768110,0.02319798,87863.0,87835.0,0.01138498]
[1769524768311,0.340995,87870.0,87835.0,0.01138498]
[1769524768312,0.64737414,87861.0,87838.0,0.01138459]
[1769524768526,0.02319798,87860.0,87843.0,0.01138394]
[1769524768726,0.05693276,87871.0,87849.0,0.01138316]
[1769524768940,0.05693276,87871.0,87852.0,0.01138278]
[1769524769147,0.05693276,87871.0,87856.0,0.01138226]
[1769524769323,0.05693276,87871.0,87854.0,0.01138252]
[1769524769524,0.05693276,87871.0,87851.0,0.0113829]
[1769524769684,0.02319798,87869.0,87849.0,0.06829866]
[1769524769882,0.02319798,87869.0,87851.0,0.0113829]
[1769524770083,0.02319798,87869.0,87852.0,0.06829665]
[1769524770310,0.02319798,87869.0,87851.0,0.0113829]
[1769524770626,0.02319798,87869.0,87841.0,0.6306486]
[1769524770829,0.05693276,87871.0,87858.0,0.011382]
[1769524771049,0.05693276,87871.0,87840.0,0.440995]
[1769524771050,0.00014026,87871.0,87860.0,0.01138174]
[1769524771186,0.00014026,87871.0,87852.0,0.01001006]
[1769524771187,0.00014026,87871.0,87855.0,0.01138239]
[1769524771389,0.00014026,87871.0,87861.0,0.01138161]
[1769524771589,0.00014026,87871.0,87863.0,0.01138135]
[1769524771806,0.00014026,87871.0,87858.0,0.011382]
[1769524772183,0.00014026,87871.0,87853.0,0.01138265]
[1769524772399,0.00014026,87871.0,87854.0,0.01138252]
[1769524772566,0.00014026,87871.0,87855.0,0.01138239]
[1769524772767,0.00014026,87871.0,87851.0,0.0113829]
[1769524773010,0.00014026,87871.0,87840.0,0.11696]
[1769524773188,0.02319798,87870.0,87845.0,0.01138368]
[1769524773386,0.02319798,87866.0,87845.0,0.01138368]
[1769524773706,0.02319798,87866.0,87843.0,0.01138394]
[1769524773707,0.64737414,87865.0,87841.0,0.0113842]
[1769524773910,0.02319798,87864.0,87843.0,0.01138394]
[1769524774061,0.02319798,87864.0,87844.0,0.01138381]
[1769524774295,0.02319798,87864.0,87846.0,0.01138355]
[1769524774498,0.02319798,87864.0,87847.0,0.01138342]
[1769524774698,0.02319798,87864.0,87845.0,0.01138368]
[1769524774905,0.02319798,87864.0,87844.0,0.01138381]
[1769524775107,0.00014026,87871.0,87860.0,0.01138174]
[1769524775308,0.00014026,87871.0,87859.0,0.01138187]
[1769524775511,0.00014026,87871.0,87852.0,0.01138278]
[1769524775708,0.64737414,87870.0,87848.0,0.01138329]
[1769524775909,0.64737414,87870.0,87851.0,0.06829707]
[1769524776162,0.64737414,87870.0,87853.0,0.01138265]
[1769524776452,0.00014026,87871.0,87855.0,0.01138239]
[1769524776779,0.00014026,87871.0,87836.0,0.11692]
[1769524776907,0.00986039,87855.0,87846.0,0.01138355]
[1769524777119,0.00986039,87855.0,87852.0,0.05691331]
[1769524777429,0.64737414,87870.0,87848.0,0.01138329]
[1769524777625,0.64737414,87870.0,87850.0,0.01138303]
[1769524777819,0.64737414,87870.0,87849.0,0.01138316]
[1769524778092,0.64737414,87870.0,87848.0,0.01138329]
[1769524778270,0.64737414,87870.0,87853.0,0.05691271]
[1769524778443,0.64737414,87870.0,87855.0,0.01138239]
[1769524778650,0.00014026,87871.0,87854.0,0.01138252]
[1769524779052,0.00014026,87871.0,87849.0,0.01138316]
[1769524779254,0.00014026,87871.0,87849.0,0.05691583]
[1769524779455,0.02319798,87869.0,87848.0,0.01138329]
[1769524779657,0.02319798,87869.0,87853.0,0.01138265]
[1769524779960,0.00014026,87871.0,87853.0,0.01138265]
[1769524780155,0.00014026,87871.0,87851.0,0.0113829]
[1769524780345,0.00014026,87871.0,87850.0,0.01138303]
[1769524780698,0.00014026,87871.0,87850.0,0.06829791]
[1769524780900,0.64737414,87870.0,87845.0,0.01138368]
[1769524781061,0.64737414,87870.0,87848.0,0.01138329]
[1769524781402,0.00014026,87871.0,87845.0,0.01138368]
[1769524781403,0.64737414,87868.0,87845.0,0.01138368]
[1769524781578,0.67057212,87866.0,87846.0,0.01138355]
[1769524781780,0.67057212,87866.0,87847.0,0.01138342]
[1769524782002,0.67057212,87866.0,87846.0,0.01138355]
[1769524782201,0.67057212,87866.0,87847.0,0.01138342]
[1769524782401,0.67057212,87866.0,87848.0,0.01138329]
[1769524782611,0.67057212,87866.0,87847.0,0.06830026]
[1769524782929,0.67057212,87866.0,87846.0,0.01138355]
[1769524783138,0.67057212,87866.0,87848.0,0.01138329]
[1769524783350,0.67057212,87866.0,87845.0,0.01138368]
[1769524783563,0.67057212,87866.0,87848.0,0.06829947]
[1769524783770,0.67057212,87866.0,87848.0,0.01138329]
[1769524783968,0.00014026,87871.0,87854.0,0.01138252]
[1769524784176,0.00014026,87871.0,87855.0,0.01138239]
[1769524784392,0.00014026,87871.0,87859.0,0.01138187]
[1769524784566,0.00014026,87871.0,87851.0,0.0113829]
[1769524784777,0.00014026,87871.0,87860.0,0.01138174]
[1769524784982,0.00014026,87871.0,87851.0,0.02445851]
[1769524784983,0.00014026,87871.0,87864.0,0.01138122]
[1769524785325,0.05693276,87874.0,87861.0,0.64203021]
[1769524785497,0.0004602,87875.0,87863.0,0.01138135]
[1769524785799,0.0004602,87875.0,87862.0,0.01138148]
[1769524786203,0.0004602,87875.0,87861.0,0.00014026]
[1769524786749,0.0004602,87875.0,87861.0,0.01152187]
[1769524786956,0.0004602,87875.0,87862.0,0.01138148]
[1769524787326,0.0004602,87875.0,87863.0,0.06828784]
[1769524787518,0.0004602,87875.0,87861.0,0.00014026]
[1769524787671,0.0004602,87875.0,87861.0,0.06842931]
[1769524787872,0.0004602,87875.0,87862.0,0.01131808]
[1769524788096,0.0004602,87875.0,87861.0,0.01152187]
[1769524788283,0.0004602,87875.0,87861.0,0.00014026]
[1769524788458,0.64783434,87875.0,87861.0,0.00014026]
[1769524789278,0.47388386,87875.0,87861.0,0.00014026]
[1769524791399,0.01137759,87892.0,87805.0,2.33430744]
[1769524791400,0.64737414,87869.0,87836.0,0.02445851]
[1769524791550,0.02319798,87866.0,87842.0,0.06830411]
[1769524791753,0.02319798,87862.0,87841.0,0.0113842]
[1769524791994,0.64737414,87861.0,87842.0,0.01138407]
[1769524792372,0.64737414,87861.0,87841.0,0.0113842]
[1769524792559,0.67057212,87861.0,87841.0,0.0113842]
[1769524792910,0.00014018,87866.0,87842.0,0.6306486]
[1769524793210,0.64737414,87865.0,87840.0,0.01138433]
[1769524793405,0.00014018,87866.0,87841.0,0.0113842]
[1769524793406,0.64737414,87863.0,87841.0,0.0113842]
[1769524793782,0.64737414,87863.0,87844.0,0.01138381]
[1769524793988,0.64737414,87863.0,87846.0,0.01138355]
[1769524794188,0.64737414,87863.0,87844.0,0.01138381]
[1769524794390,0.64737414,87863.0,87846.0,0.01138355]
[1769524794570,0.64737414,87863.0,87845.0,0.01138368]
[1769524794772,0.64737414,87863.0,87844.0,0.01138381]
[1769524795119,0.69043164,87862.0,87844.0,0.01138381]
[1769524795422,0.69043164,87862.0,87840.0,0.68660312]
[1769524795579,0.69043164,87862.0,87844.0,0.01138381]
[1769524795788,0.00014018,87866.0,87846.0,0.01138355]
[1769524795983,0.66644448,87866.0,87847.0,0.01138342]
[1769524796220,0.66644448,87866.0,87851.0,0.05691439]
[1769524796419,0.66644448,87866.0,87852.0,0.01138278]
[1769524796579,0.66644448,87866.0,87854.0,0.01138252]
[1769524796786,0.66644448,87866.0,87853.0,0.0569128]
[1769524796787,0.00014018,87866.0,87853.0,0.01138265]
[1769524797009,0.00014018,87866.0,87855.0,0.01138239]
[1769524797207,0.00014018,87866.0,87853.0,0.01138265]
[1769524797412,0.00014018,87866.0,87855.0,0.01138239]
[1769524797628,0.00014018,87866.0,87857.0,0.01138213]
[1769524798163,0.00014018,87866.0,87855.0,0.01138239]
[1769524798365,0.00014018,87866.0,87857.0,0.01138213]
[1769524799148,0.00014018,87866.0,87847.0,0.01138342]
[1769524799390,0.02412734,87864.0,87849.0,0.11692]
[1769524799591,0.02412734,87864.0,87854.0,0.01138252]
[1769524799919,0.00014018,87866.0,87850.0,0.01138303]
[1769524800125,0.00014018,87866.0,87849.0,0.11692]
[1769524800240,0.66644448,87866.0,87850.0,0.01138303]
[1769524800444,0.69057182,87866.0,87849.0,0.01138316]
[1769524800675,0.69057182,87866.0,87850.0,0.01138303]
[1769524800948,0.00014018,87866.0,87855.0,0.01138239]
[1769524801146,0.00014018,87866.0,87852.0,0.68660312]
[1769524801629,0.00014018,87866.0,87851.0,0.69798602]
[1769524801746,0.00014018,87866.0,87851.0,0.0113829]
[1769524801953,0.00014018,87866.0,87849.0,0.11692]
[1769524802174,0.00014018,87866.0,87850.0,0.01138303]
[1769524802390,0.00014018,87866.0,87839.0,0.05692203]
[1769524802593,0.02412734,87861.0,87851.0,0.05691412]
[1769524802796,0.00014018,87866.0,87854.0,0.01138252]
[1769524802998,0.00014018,87866.0,87853.0,0.01138265]
[1769524803228,0.00014018,87866.0,87855.0,0.01138239]
[1769524803414,0.02412734,87883.0,87864.0,0.01138122]
[1769524803589,0.11342032,87882.0,87851.0,0.00524739]
[1769524803790,0.05693276,87869.0,87840.0,0.01138433]
[1769524803993,0.02412734,87865.0,87838.0,0.12830459]
[1769524804191,0.6663043,87862.0,87838.0,0.1284449]
[1769524804390,0.02412734,87861.0,87843.0,0.68660312]
[1769524804616,0.02412734,87868.0,87843.0,0.68660312]
[1769524804819,0.80382409,87867.0,87847.0,0.01138342]
[1769524805047,0.69043164,87867.0,87843.0,0.69798706]
[1769524805251,0.05693276,87869.0,87834.0,0.68660312]
[1769524805252,0.02412734,87866.0,87834.0,0.68660312]
[1769524805579,0.05693276,87869.0,87834.0,0.68660312]
[1769524805580,0.6663043,87861.0,87838.0,0.00014031]
[1769524805721,0.6663043,87858.0,87838.0,0.00014031]
[1769524805919,0.02412734,87857.0,87838.0,0.00014031]
[1769524806345,0.6663043,87868.0,87839.0,0.68660312]
[1769524806547,0.05693276,87869.0,87861.0,0.05690781]
[1769524806724,0.16936913,87893.0,87868.0,0.01]
[1769524806725,0.02412734,87883.0,87868.0,0.01]
[1769524807064,0.05688876,87878.0,87858.0,0.68660312]
[1769524807269,0.6663043,87877.0,87855.0,0.01138239]
[1769524807424,0.02412734,87875.0,87856.0,0.0569108]
[1769524807630,0.01303734,87875.0,87856.0,0.01138226]
[1769524807830,0.01317755,87875.0,87851.0,0.80352312]
[1769524808031,0.01317755,87875.0,87855.0,0.05691155]
[1769524808370,0.01317755,87875.0,87853.0,0.74351636]
[1769524808577,0.00014021,87875.0,87859.0,0.01138187]
[1769524808740,0.01137669,87899.0,87851.0,0.11692]
[1769524808741,0.05688876,87887.0,87867.0,0.01138083]
[1769524809153,0.05688876,87887.0,87867.0,0.0682849]
[1769524809356,0.05688876,87887.0,87867.0,0.01138083]
[1769524809533,0.05688876,87887.0,87840.0,0.24567116]
[1769524809721,0.6663043,87886.0,87864.0,0.01138122]
[1769524809920,0.05688876,87887.0,87865.0,0.01138109]
[1769524810342,0.05688876,87887.0,87867.0,0.01138083]
[1769524810580,0.6663043,87886.0,87864.0,0.01138122]
[1769524810831,0.47955818,87897.0,87877.0,0.01137954]
[1769524811064,0.47955818,87897.0,87862.0,0.00014021]
[1769524811065,0.47955818,87897.0,87873.0,0.02346267]
[1769524811329,0.05688876,87898.0,87881.0,0.05689501]
[1769524811558,0.6667541,87902.0,87884.0,0.01137863]
[1769524811816,0.6667541,87902.0,87880.0,0.34061138]
[1769524811817,0.05688876,87912.0,87902.0,0.01]
[1769524812051,0.47549541,87940.0,87902.0,0.01]
[1769524812052,0.72319306,87933.0,87906.0,0.01137578]
[1769524812317,0.72319306,87933.0,87912.0,0.01137501]
[1769524812556,0.72319306,87933.0,87910.0,0.01137527]
[1769524812777,0.72319306,87933.0,87905.0,0.02346267]
[1769524813004,0.00091752,87929.0,87906.0,0.11692]
[1769524813428,0.00091752,87929.0,87907.0,0.02346267]
[1769524813658,0.01229033,87929.0,87907.0,0.02346267]
[1769524813804,0.00091752,87929.0,87907.0,0.02346267]
[1769524816120,0.6663043,87918.0,87898.0,0.11688]
[1769524816318,0.02412734,87915.0,87898.0,0.11688]
[1769524816527,0.02412734,87911.0,87889.0,0.02732]
[1769524816726,0.6663043,87907.0,87889.0,0.02732]
[1769524816979,0.6663043,87907.0,87889.0,0.03869798]
[1769524817178,0.6663043,87907.0,87889.0,0.02732]
[1769524817339,0.6663043,87907.0,87891.0,0.01137772]
[1769524817540,0.05688876,87908.0,87893.0,0.01137747]
[1769524817741,0.05688876,87908.0,87889.0,0.02732]
[1769524817742,0.6663043,87907.0,87889.0,0.02732]
[1769524818330,0.6663043,87907.0,87889.0,0.03869798]
[1769524818615,0.05688876,87908.0,87889.0,0.02732]
[1769524818784,0.6663043,87907.0,87889.0,0.02732]
[1769524819012,0.6663043,87907.0,87889.0,0.03869798]
[1769524819358,0.05688876,87908.0,87894.0,0.01137734]
[1769524819560,0.05688876,87908.0,87889.0,0.02732]
[1769524819800,0.05688876,87908.0,87891.0,0.01137772]
[1769524819997,0.05688876,87908.0,87890.0,0.02346267]
[1769524820203,0.05688876,87908.0,87895.0,0.01137721]
[1769524820401,0.05688876,87908.0,87890.0,0.34061138]
[1769524820623,0.05688876,87908.0,87894.0,0.02346267]
[1769524820787,0.05688876,87908.0,87894.0,0.03484001]
[1769524820995,0.05688876,87908.0,87895.0,0.01137721]
[1769524821227,0.05688876,87908.0,87896.0,0.01137708]
[1769524821427,0.05688876,87908.0,87897.0,0.01137695]
[1769524821632,0.6663043,87917.0,87908.0,0.01]
[1769524821633,0.05688876,87917.0,87908.0,0.01]
[1769524821965,0.00091752,87929.0,87920.0,0.01137397]
[1769524822089,0.00091752,87929.0,87917.0,0.01137436]
[1769524822090,0.00045876,87929.0,87914.0,0.02407106]
[1769524822293,0.02491627,87935.0,87908.0,0.02137552]
[1769524822495,0.02491627,87928.0,87902.0,0.0113763]
[1769524822713,0.02491627,87923.0,87895.0,0.01137721]
[1769524822933,0.63685023,87920.0,87894.0,0.01137734]
[1769524823135,0.6617665,87920.0,87892.0,0.02407106]
[1769524823335,0.05683334,87917.0,87895.0,0.01137721]
[1769524823549,0.63685023,87916.0,87891.0,0.12825772]
[1769524823749,0.63685023,87916.0,87894.0,0.01137734]
[1769524823953,0.63685023,87916.0,87891.0,0.11688]
[1769524824150,0.63685023,87916.0,87893.0,0.01137747]
[1769524824371,0.63685023,87916.0,87894.0,0.01137734]
[1769524824890,0.63685023,87916.0,87889.0,0.05688945]
[1769524825090,0.65947305,87916.0,87887.0,0.01137824]
[1769524825328,0.6738029,87909.0,87878.0,0.01137941]
[1769524825501,0.02262282,87906.0,87881.0,0.01137902]
[1769524825707,0.02262282,87906.0,87871.0,0.74135329]
[1769524825708,0.07945616,87917.0,87885.0,0.65975092]
[1769524825860,0.02262282,87915.0,87886.0,0.02413894]
[1769524826061,0.6738029,87912.0,87879.0,0.01137928]
[1769524826260,0.6738029,87908.0,87880.0,0.01137915]
[1769524826469,0.6738029,87906.0,87871.0,0.01138031]
[1769524826651,0.6738029,87902.0,87871.0,0.01138031]
[1769524826857,0.02262282,87888.0,87859.0,0.05145894]
[1769524827187,0.6738029,87883.0,87859.0,0.02732]
[1769524827776,0.69642572,87883.0,87859.0,0.02732]
[1769524827996,0.02262282,87882.0,87859.0,0.02732]
[1769524828199,0.6738029,87881.0,87859.0,0.02732]
[1769524829594,0.6738029,87881.0,87860.0,0.01138174]
[1769524829801,0.42006754,87890.0,87861.0,0.01138161]
[1769524830017,0.6738029,87889.0,87861.0,0.01138161]
[1769524830218,0.6738029,87889.0,87869.0,0.01138057]
[1769524830449,0.6738029,87889.0,87867.0,0.01138083]
[1769524830656,0.05683334,87890.0,87876.0,0.01137967]
[1769524830905,0.05683334,87890.0,87878.0,0.01137941]
[1769524831077,0.05683334,87890.0,87877.0,0.01137954]
[1769524831078,0.6738029,87902.0,87877.0,0.02413894]
[1769524831230,0.69642572,87902.0,87875.0,0.0113798]
[1769524831432,0.69642572,87902.0,87869.0,0.02413894]
[1769524831433,0.69642572,87902.0,87869.0,0.01138057]
[1769524831753,0.6851792,87902.0,87867.0,0.02413894]
[1769524831957,0.34061138,87890.0,87864.0,0.0004628]
[1769524832122,0.6738029,87886.0,87864.0,0.0004628]
[1769524832334,0.02262282,87885.0,87864.0,0.0004628]
[1769524832543,0.6738029,87882.0,87864.0,0.0004628]
[1769524834275,0.05683334,87883.0,87867.0,0.01138083]
[1769524834478,0.05683334,87883.0,87864.0,0.02460174]
[1769524834681,0.05683334,87883.0,87864.0,0.03598296]
[1769524834915,0.05683334,87883.0,87866.0,0.01138096]
[1769524835118,0.05683334,87883.0,87864.0,0.02460174]
[1769524835326,0.05683334,87883.0,87865.0,0.02413894]
[1769524836145,0.05683334,87883.0,87865.0,0.09242539]
[1769524836372,0.05683334,87883.0,87868.0,0.0113807]
[1769524836583,0.05683334,87894.0,87881.0,0.01137902]
[1769524836711,0.05683334,87894.0,87877.0,0.01137954]
[1769524836911,0.05683334,87894.0,87878.0,0.01137941]
[1769524837165,0.05683334,87894.0,87877.0,0.01137954]
[1769524837365,0.05683334,87894.0,87884.0,0.01137863]
[1769524837734,0.00014014,87906.0,87885.0,0.0113785]
[1769524837921,0.02732,87940.0,87907.0,0.01137565]
[1769524838124,0.05689399,87926.0,87918.0,0.01137423]
[1769524838275,0.05689399,87938.0,87927.0,0.01137307]
[1769524838438,0.00014012,87940.0,87931.0,0.01137255]
[1769524838657,0.05689399,87955.0,87952.0,0.01136983]
[1769524838858,0.0004522,87960.0,87950.0,0.01137009]
[1769524839100,0.0004522,87960.0,87948.0,0.02123023]
[1769524839342,0.0004522,87960.0,87953.0,0.0113697]
[1769524839633,0.0004522,87960.0,87954.0,0.05684778]
[1769524839762,0.0004522,87960.0,87948.0,0.01137035]
[1769524839966,0.0004522,87960.0,87955.0,0.01136945]
[1769524840167,0.0004522,87960.0,87952.0,0.01136983]
[1769524840361,0.0004522,87960.0,87945.0,0.02413894]
[1769524840566,0.0004522,87960.0,87946.0,0.01137061]
[1769524840803,0.0004522,87960.0,87949.0,0.01137022]
[1769524841017,0.0004522,87960.0,87947.0,0.05685205]
[1769524841018,0.0004522,87960.0,87947.0,0.22740831]
[1769524841207,0.0004522,87960.0,87937.0,0.01137177]
[1769524841407,0.0004522,87960.0,87923.0,0.06299951]
[1769524841408,0.0004522,87960.0,87947.0,0.01137048]
[1769524841633,0.0004522,87960.0,87954.0,0.01136957]
[1769524841957,0.0004522,87960.0,87947.0,0.00014012]
[1769524841958,5.653e-05,87960.0,87952.0,0.01136983]
[1769524842166,0.05689399,87977.0,87963.0,0.01136841]
[1769524842375,0.84857691,88020.0,87963.0,0.01136841]
[1769524842376,0.73069689,87990.0,87963.0,0.02453894]
[1769524842580,0.73069689,87990.0,87965.0,0.01136815]
[1769524842790,0.73069689,87990.0,87971.0,0.01136738]
[1769524842968,0.05689399,87990.0,87974.0,0.01136699]
[1769524843167,0.34061138,88000.0,87968.0,0.02413894]
[1769524843310,0.05678071,87994.0,87969.0,0.01136764]
[1769524843522,0.50384641,87993.0,87968.0,0.02413894]
[1769524843714,0.50384641,87993.0,87969.0,0.06820579]
[1769524843951,0.50384641,87993.0,87971.0,0.01136738]
[1769524844151,0.50398655,87993.0,87972.0,0.01136725]
[1769524844356,0.50398655,87993.0,87975.0,0.01136686]
[1769524844689,0.50398655,87993.0,87967.0,0.01136789]
[1769524844900,0.50398655,87993.0,87971.0,0.01136738]
[1769524845648,0.00014014,87993.0,87975.0,0.0355058]
[1769524845852,0.00014014,87993.0,87977.0,0.0113666]
[1769524846054,0.00014014,87993.0,87975.0,0.02413894]
[1769524846611,0.6738029,87992.0,87971.0,0.01136738]
[1769524846822,0.00014014,87993.0,87975.0,0.02413894]
[1769524846973,0.6738029,87992.0,87969.0,0.01136764]
[1769524847174,0.6738029,87992.0,87969.0,0.03550658]
[1769524847344,0.6738029,87992.0,87969.0,0.09234471]
[1769524847555,0.6738029,87992.0,87970.0,0.02413894]
[1769524847770,0.6738029,87992.0,87972.0,0.01136725]
[1769524847983,0.6738029,87992.0,87970.0,0.03550645]
[1769524848504,0.6738029,87992.0,87971.0,0.01136738]
[1769524848664,0.6738029,87992.0,87964.0,0.01136828]
[1769524848864,0.34061138,87990.0,87965.0,0.02413894]
[1769524849102,0.6738029,87989.0,87960.0,0.1168]
[1769524849305,0.6738029,87989.0,87953.0,0.0386897]
[1769524849306,0.6738029,87979.0,87953.0,0.0386897]
[1769524849504,0.68412302,88016.0,87989.0,0.01136505]
[1769524849677,0.68412302,88016.0,87990.0,0.01136492]
[1769524849678,0.6738029,88014.0,87990.0,0.01136492]
[1769524849894,0.73061569,88010.0,87986.0,0.01136544]
[1769524850095,0.39742417,88010.0,87985.0,0.02413894]
[1769524850280,0.6738029,88007.0,87975.0,0.01136686]
[1769524850483,0.34061138,88000.0,87975.0,0.00014014]
[1769524850695,0.6738029,87999.0,87975.0,0.00014014]
[1769524851127,0.6738029,87999.0,87979.0,0.02413894]
[1769524851458,0.6738029,87999.0,87975.0,0.00014014]
[1769524851733,0.6738029,87997.0,87975.0,0.00014014]
[1769524852463,0.39742417,88000.0,87975.0,0.00014014]
[1769524852464,0.05681279,88000.0,87981.0,0.02413894]
[1769524852846,0.05681279,88000.0,87975.0,0.00014014]
[1769524852847,0.6738029,87999.0,87975.0,0.00014014]
[1769524853182,0.7502734,87999.0,87975.0,0.00014014]
[1769524853322,0.02262282,87989.0,87951.0,0.01136996]
[1769524853524,0.02262282,87989.0,87893.0,2.27548787]
[1769524853525,0.01136634,87979.0,87946.0,0.02413894]
[1769524853745,0.05681279,87985.0,87946.0,0.02413894]
[1769524853746,0.05681279,87974.0,87946.0,0.02413894]
[1769524853953,0.6738029,87973.0,87947.0,0.01137048]
[1769524854370,0.6738029,87973.0,87952.0,0.03864983]
[1769524854711,0.6738029,87973.0,87952.0,0.02728]
[1769524855180,0.6738029,87973.0,87953.0,0.0113697]
[1769524855361,0.05681279,87974.0,87953.0,0.0113697]
[1769524855362,0.05681279,87974.0,87953.0,0.0347266]
[1769524855702,0.05681279,87974.0,87955.0,0.01136945]
[1769524855908,0.05681279,87974.0,87958.0,0.01136906]
[1769524856110,0.02302475,87988.0,87966.0,0.01136802]
[1769524856111,0.04681279,87988.0,87966.0,0.01136802]
[1769524856315,0.04681279,87988.0,87973.0,0.01136712]
[1769524856639,0.00014001,87989.0,87960.0,0.34061138]
[1769524856640,0.0469528,87989.0,87976.0,0.01136673]
[1769524856819,0.00014001,87989.0,87977.0,0.0113666]
[1769524856959,0.00014001,87989.0,87974.0,0.01136699]
[1769524857160,0.00014001,87989.0,87973.0,0.0233569]
[1769524857396,0.00014001,87989.0,87973.0,0.03472402]
[1769524857595,0.00014001,87989.0,87973.0,0.0233569]
[1769524857850,0.00014001,87989.0,87965.0,0.01136815]
[1769524858059,0.00014001,87989.0,87966.0,0.01136802]
[1769524858213,0.00014001,87989.0,87968.0,0.01136777]
[1769524858633,0.00014001,87989.0,87969.0,0.01136764]
[1769524858815,0.00014001,87989.0,87971.0,0.01136738]
[1769524859051,0.00014001,87989.0,87967.0,0.0233569]
[1769524859200,0.00014001,87989.0,87968.0,0.01136777]
[1769524859405,0.00014001,87989.0,87969.0,0.01136764]
[1769524859970,0.00014001,87989.0,87970.0,0.01136751]
[1769524860168,0.00014001,87989.0,87967.0,0.0233569]
[1769524860375,0.65523598,87988.0,87956.0,0.01136932]